bitfinex/quotes_BTCUSD_20230113
["timestamp","ask_amount","ask_price","bid_price","bid_amount"]
[1673589633032,0.02785686,18785.0,18784.0,1.32911766]
[1673589636766,0.02779159,18785.0,18784.0,1.32911766]
[1673589639972,0.02779159,18785.0,18784.0,0.69307373]
[1673589640203,0.02779159,18785.0,18784.0,1.09106715]
[1673589640468,0.02779159,18785.0,18784.0,2.24032347]
[1673589640714,0.02779159,18785.0,18784.0,2.54032347]
[1673589640968,0.02779159,18785.0,18784.0,2.24032347]
[1673589641195,0.02779159,18785.0,18784.0,2.54032347]
[1673589642006,0.02779159,18785.0,18784.0,2.24032347]
[1673589642253,0.02779159,18785.0,18784.0,2.54032347]
[1673589642744,0.02779159,18785.0,18784.0,2.54046069]
[1673589642988,0.02779159,18785.0,18784.0,2.69948709]
[1673589643260,0.02779159,18785.0,18784.0,2.54046071]
[1673589645316,0.02779159,18785.0,18784.0,3.03495039]
[1673589645560,0.02779159,18785.0,18784.0,3.23195893]
[1673589646816,0.02779159,18785.0,18784.0,3.56742223]
[1673589647072,0.02379159,18785.0,18784.0,3.10863703]
[1673589647311,0.02479159,18785.0,18784.0,3.29332126]
[1673589647805,0.02479159,18785.0,18784.0,4.21706665]
[1673589648051,0.00319131,18791.0,18785.0,0.1]
[1673589648301,0.00319131,18791.0,18790.0,0.2836]
[1673589648560,0.00319131,18791.0,18790.0,0.614061]
[1673589649307,0.00319131,18791.0,18790.0,0.61498101]
[1673589649553,0.01619131,18791.0,18790.0,0.62098101]
[1673589649794,0.01619131,18791.0,18790.0,0.29052001]
[1673589650035,0.01619131,18791.0,18790.0,0.62098101]
[1673589650547,0.01619131,18791.0,18790.0,1.31029572]
[1673589651036,0.01749323,18791.0,18790.0,1.31029572]
[1673589656208,0.01749323,18791.0,18790.0,0.62098101]
[1673589656458,0.01749323,18791.0,18790.0,1.30251651]
[1673589656978,0.00449323,18791.0,18790.0,1.29651651]
[1673589657253,0.00449323,18791.0,18790.0,0.61498101]
[1673589657515,0.00449323,18791.0,18790.0,1.2897304]
[1673589657764,0.00449323,18791.0,18790.0,1.3157304]
[1673589658013,0.00449323,18791.0,18790.0,1.28881039]
[1673589658263,0.00449323,18791.0,18790.0,0.98434939]
[1673589659262,0.00449323,18791.0,18790.0,0.70074939]
[1673589661202,0.00449323,18791.0,18790.0,0.7016694]
[1673589661679,0.00449323,18791.0,18790.0,0.70074939]
[1673589661935,0.00449323,18791.0,18790.0,0.026]
[1673589662445,0.41025592,18791.0,18790.0,0.026]
[1673589662688,0.74071692,18791.0,18790.0,0.026]
[1673589662938,0.24025,18790.0,18788.0,0.58551942]
[1673589663180,0.62056086,18791.0,18790.0,0.026]
[1673589663408,0.41025592,18791.0,18790.0,0.026]
[1673589663663,0.00449323,18791.0,18790.0,0.026]
[1673589663910,0.41025952,18790.0,18787.0,0.2418]
[1673589664147,0.41025952,18790.0,18786.0,0.1413]
[1673589664148,0.02599999,18789.0,18786.0,0.1413]
[1673589664391,0.23630493,18789.0,18787.0,0.57792986]
[1673589664638,0.02599999,18789.0,18787.0,0.57792986]
[1673589665103,0.02599999,18789.0,18787.0,0.67592986]
[1673589665352,0.02599999,18789.0,18788.0,0.00092012]
[1673589665606,0.02699999,18789.0,18788.0,0.00083712]
[1673589665870,0.02599999,18789.0,18787.0,0.57792986]
[1673589666363,0.02599999,18789.0,18788.0,0.97387613]
[1673589666863,0.02599999,18789.0,18788.0,0.64341513]
[1673589667848,0.03799999,18789.0,18788.0,0.64341513]
[1673589668838,0.03799999,18789.0,18788.0,0.63841513]
[1673589669079,0.03799999,18789.0,18788.0,0.613761]
[1673589669548,0.03799999,18789.0,18788.0,1.013761]
[1673589670046,0.02599999,18789.0,18788.0,1.61266864]
[1673589670287,0.02699999,18789.0,18788.0,1.71066864]
[1673589670532,0.02599999,18789.0,18788.0,1.31266864]
[1673589670792,0.02599999,18789.0,18788.0,1.41066864]
[1673589671029,0.02699999,18789.0,18788.0,1.111761]
[1673589671290,0.02699999,18789.0,18788.0,1.66307983]
[1673589671533,0.02830118,18789.0,18788.0,1.111761]
[1673589671768,0.02830118,18789.0,18788.0,1.50925473]
[1673589673688,0.02830118,18789.0,18788.0,3.36345074]
[1673589673865,0.02830118,18789.0,18788.0,3.817657]
[1673589674771,1.8e-07,18789.0,18788.0,3.01149336]
[1673589675863,1.8e-07,18789.0,18788.0,3.56931573]
[1673589676081,1.8e-07,18789.0,18788.0,3.01233463]
[1673589676315,1.8e-07,18789.0,18788.0,3.6194621]
[1673589677349,1.8e-07,18789.0,18788.0,4.34077688]
[1673589677598,0.00319131,18791.0,18788.0,4.34347688]
[1673589677796,0.00319131,18791.0,18790.0,1.99164005]
[1673589678018,0.00319131,18791.0,18790.0,2.95756435]
[1673589678993,0.00319131,18791.0,18790.0,2.10566435]
[1673589679208,0.00319131,18791.0,18790.0,1.94665928]
[1673589679432,0.00319131,18791.0,18790.0,2.08665928]
[1673589680149,0.00319131,18791.0,18790.0,1.95454133]
[1673589680381,0.00319131,18791.0,18790.0,1.87501887]
[1673589680596,0.00319131,18791.0,18790.0,1.5921729]
[1673589681959,0.00319131,18791.0,18790.0,1.35365572]
[1673589682660,0.00319131,18791.0,18790.0,1.43664258]
[1673589682890,0.00319131,18791.0,18790.0,1.13584786]
[1673589685618,0.00319131,18791.0,18790.0,1.43584786]
[1673589686576,0.00319131,18791.0,18790.0,1.13584786]
[1673589686802,0.00319131,18791.0,18790.0,1.43584786]
[1673589687485,0.00319131,18791.0,18790.0,0.911061]
[1673589687723,0.00319131,18791.0,18790.0,1.9275362]
[1673589688430,0.00319131,18791.0,18790.0,1.5920729]
[1673589689844,0.00319131,18791.0,18790.0,2.08655928]
[1673589690077,0.00319131,18791.0,18790.0,1.8480421]
[1673589690531,0.00319131,18791.0,18790.0,2.24556435]
[1673589690753,0.00319131,18791.0,18790.0,1.8480421]
[1673589690971,0.00319131,18791.0,18790.0,1.91010105]
[1673589691394,0.00319131,18791.0,18790.0,2.24556435]
[1673589691631,0.0044883,18791.0,18790.0,2.24556435]
[1673589691871,0.0044883,18791.0,18790.0,1.91010105]
[1673589692579,0.0044883,18791.0,18790.0,2.24556435]
[1673589693056,0.0044883,18791.0,18790.0,1.91010105]
[1673589693382,0.0044883,18791.0,18790.0,2.00966435]
[1673589694609,0.0044883,18791.0,18790.0,1.85054294]
[1673589694861,0.0044883,18791.0,18790.0,2.00966435]
[1673589697306,0.0044883,18791.0,18790.0,1.85051502]
[1673589697542,0.0044883,18791.0,18790.0,1.6121421]
[1673589697779,0.0044883,18791.0,18790.0,2.00966435]
[1673589698266,0.00440152,18791.0,18790.0,2.00966435]
[1673589699066,0.00440152,18791.0,18790.0,1.67420105]
[1673589699816,0.00440152,18791.0,18790.0,1.94028105]
[1673589701251,0.00440152,18791.0,18790.0,1.62226325]
[1673589702026,0.00440152,18791.0,18790.0,1.94010348]
[1673589702277,0.00440152,18791.0,18790.0,1.78099871]
[1673589703771,0.00440152,18791.0,18790.0,1.68699871]
[1673589704274,0.00440152,18791.0,18790.0,1.84610348]
[1673589705016,0.00440152,18791.0,18790.0,1.68797684]
[1673589705264,0.00440152,18791.0,18790.0,1.44942241]
[1673589705504,0.00440152,18791.0,18790.0,1.84694466]
[1673589706237,0.00440152,18791.0,18790.0,1.68799725]
[1673589706735,0.00440152,18791.0,18790.0,1.84694466]
[1673589707475,0.00440152,18791.0,18790.0,1.52910443]
[1673589708472,0.00440152,18791.0,18790.0,1.46704548]
[1673589708731,0.00440152,18791.0,18790.0,1.94438773]
[1673589708982,0.00440152,18791.0,18790.0,1.60892443]
[1673589709232,0.00440152,18791.0,18790.0,2.03878773]
[1673589709482,0.00440152,18791.0,18790.0,1.70332443]
[1673589711253,0.00440152,18791.0,18790.0,1.22598218]
[1673589711504,0.00440152,18791.0,18790.0,1.56144548]
[1673589711747,0.00440152,18791.0,18790.0,1.42144548]
[1673589712004,0.00440077,18791.0,18790.0,1.56044548]
[1673589712779,0.00440077,18791.0,18790.0,1.42144548]
[1673589713006,0.00440077,18791.0,18790.0,1.56044548]
[1673589713247,0.00440077,18791.0,18790.0,1.22498218]
[1673589713473,0.00440077,18791.0,18790.0,1.56044548]
[1673589714664,0.00440077,18791.0,18790.0,1.22498218]
[1673589714905,0.00440077,18791.0,18790.0,1.56044548]
[1673589715930,0.00348462,18792.0,18791.0,0.1]
[1673589716179,0.00348462,18792.0,18791.0,1.2539243]
[1673589716922,0.00348462,18792.0,18791.0,0.918461]
[1673589717164,0.00348462,18792.0,18791.0,1.2539243]
[1673589717696,0.00356799,18793.0,18791.0,1.2539243]
[1673589718015,0.00356799,18793.0,18792.0,0.99612362]
[1673589718440,0.00356799,18793.0,18792.0,1.29612362]
[1673589719482,0.00356799,18793.0,18792.0,1.43612362]
[1673589721498,9.9e-07,18793.0,18792.0,2.47030972]
[1673589722043,9.9e-07,18793.0,18792.0,1.96235632]
[1673589724209,9.9e-07,18793.0,18792.0,1.82235632]
[1673589724483,9.9e-07,18793.0,18792.0,1.96135632]
[1673589725015,9.9e-07,18793.0,18792.0,1.818957]
[1673589725261,9.9e-07,18793.0,18792.0,1.81887068]
[1673589725768,9.9e-07,18793.0,18792.0,1.48340738]
[1673589726247,9.9e-07,18793.0,18792.0,1.96111556]
[1673589726485,9.9e-07,18793.0,18792.0,1.48340738]
[1673589727226,3.5e-07,18794.0,18793.0,0.1]
[1673589727480,0.00510985,18795.0,18793.0,2.045647]
[1673589727719,0.00510985,18795.0,18794.0,1.33177941]
[1673589727962,0.00510985,18795.0,18794.0,2.15801211]
[1673589728210,0.00510985,18795.0,18794.0,1.82254881]
[1673589729148,0.00510985,18795.0,18794.0,1.96354881]
[1673589730171,8.5e-07,18795.0,18794.0,1.96354881]
[1673589730425,0.00339966,18797.0,18795.0,0.1]
[1673589730717,0.00339966,18797.0,18795.0,1.3507877]
[1673589730929,0.00339966,18797.0,18795.0,1.35086461]
[1673589731647,0.00339966,18797.0,18795.0,1.44186461]
[1673589732120,0.00339966,18797.0,18795.0,1.83953051]
[1673589732362,0.00510621,18796.0,18795.0,1.74853051]
[1673589732616,0.00510621,18796.0,18795.0,1.65497354]
[1673589732852,0.00510621,18796.0,18795.0,1.49591939]
[1673589733342,0.00510621,18796.0,18795.0,1.39591939]
[1673589733597,0.00510621,18796.0,18795.0,0.99816791]
[1673589733843,0.00510621,18796.0,18795.0,0.97908821]
[1673589734088,0.00510621,18796.0,18795.0,0.99816791]
[1673589734333,0.00510621,18796.0,18795.0,0.97908821]
[1673589734603,0.00510621,18796.0,18795.0,0.83908821]
[1673589734851,0.00510621,18796.0,18795.0,0.97908821]
[1673589735101,0.00510621,18796.0,18795.0,0.83908821]
[1673589735352,0.74503886,18796.0,18795.0,0.471555]
[1673589735600,0.74495586,18796.0,18795.0,0.141]
[1673589736092,0.28800621,18796.0,18795.0,0.141]
[1673589736338,0.14670621,18796.0,18795.0,0.141]
[1673589738349,0.14670621,18796.0,18795.0,0.14107691]
[1673589739124,0.14670621,18796.0,18795.0,0.68357059]
[1673589741399,0.14670621,18796.0,18795.0,0.84265029]
[1673589741655,0.14670621,18796.0,18795.0,1.57320529]
[1673589741901,0.00510621,18796.0,18795.0,1.57320529]
[1673589742662,0.00510621,18796.0,18795.0,1.81181704]
[1673589743233,0.00510621,18796.0,18795.0,1.57320529]
[1673589743457,0.00510621,18796.0,18795.0,1.03071161]
[1673589743705,0.00510621,18796.0,18795.0,2.23718544]
[1673589743949,0.00510621,18796.0,18795.0,1.69917254]
[1673589744201,0.00510621,18796.0,18795.0,1.46056079]
[1673589744739,0.00510621,18796.0,18795.0,1.85822669]
[1673589745972,0.00510621,18796.0,18795.0,2.12422669]
[1673589746223,0.00510621,18796.0,18795.0,1.80608417]
[1673589749695,0.00510621,18796.0,18795.0,1.40841827]
[1673589750664,0.00504617,18796.0,18795.0,1.40841827]
[1673589750907,0.00504617,18796.0,18795.0,1.97763108]
[1673589751163,0.00504617,18796.0,18795.0,2.29402258]
[1673589751406,0.35695111,18796.0,18795.0,1.47076364]
[1673589751643,0.14664617,18796.0,18795.0,1.14020864]
[1673589752622,0.1466445,18796.0,18795.0,1.14020864]
[1673589753900,0.1466445,18796.0,18795.0,0.98099917]
[1673589754878,0.1466445,18796.0,18795.0,0.98107608]
[1673589755862,0.1466445,18796.0,18795.0,1.31163108]
[1673589756177,0.1466445,18796.0,18795.0,1.14020864]
[1673589756668,0.1466445,18796.0,18795.0,1.47076364]
[1673589756913,0.1466445,18796.0,18795.0,1.70957018]
[1673589757422,0.1466445,18796.0,18795.0,1.70964709]
[1673589757654,0.1466445,18796.0,18795.0,2.00964709]
[1673589757899,0.1466445,18796.0,18795.0,2.16883867]
[1673589758136,0.1466445,18796.0,18795.0,2.0096889]
[1673589758867,0.1466445,18796.0,18795.0,1.55043762]
[1673589759113,0.0050445,18796.0,18795.0,2.00968932]
[1673589759323,0.0050445,18796.0,18795.0,1.85043762]
[1673589759595,0.0050445,18796.0,18795.0,1.70968256]
[1673589759842,0.0050445,18796.0,18795.0,2.16883867]
[1673589761553,0.0050445,18796.0,18795.0,1.85043762]
[1673589761802,0.0050445,18796.0,18795.0,2.16883867]
[1673589764691,0.0050445,18796.0,18795.0,1.85043762]
[1673589765209,0.0050445,18796.0,18795.0,2.16883867]
[1673589766419,0.0050445,18796.0,18795.0,1.85043762]
[1673589766922,0.0050445,18796.0,18795.0,2.16883867]
[1673589767930,0.0050445,18796.0,18795.0,1.93003213]
[1673589768183,0.0050445,18796.0,18795.0,2.16894922]
[1673589768424,0.0050445,18796.0,18795.0,2.32802258]
[1673589768668,0.0050445,18796.0,18795.0,2.59404258]
[1673589769611,0.0050445,18796.0,18795.0,2.43496914]
[1673589770101,0.0050445,18796.0,18795.0,2.59404258]
[1673589770603,0.0050445,18796.0,18795.0,1.70642872]
[1673589771106,0.0050445,18796.0,18795.0,1.70641872]
[1673589771368,0.0050445,18796.0,18795.0,1.7066688]
[1673589771605,0.0050445,18796.0,18795.0,1.30842827]
[1673589771887,0.0050445,18796.0,18795.0,1.64389157]
[1673589772375,0.0049489,18796.0,18795.0,2.12124106]
[1673589772852,0.00495191,18796.0,18795.0,1.78577776]
[1673589773104,0.00495191,18796.0,18795.0,1.30842827]
[1673589774482,0.00495191,18796.0,18795.0,1.78577776]
[1673589775147,0.00495191,18796.0,18795.0,2.42278941]
[1673589775359,0.00495191,18796.0,18795.0,1.86602486]
[1673589775834,0.00495191,18796.0,18795.0,1.30842827]
[1673589777239,0.00495191,18796.0,18795.0,1.31522827]
[1673589778396,0.00495191,18796.0,18795.0,1.92788094]
[1673589778632,0.00495191,18796.0,18795.0,1.31522827]
[1673589779166,0.00495191,18796.0,18795.0,1.79257776]
[1673589779399,0.00495191,18796.0,18795.0,1.31522827]
[1673589779880,0.00495191,18796.0,18795.0,1.79257776]
[1673589780145,0.00495191,18796.0,18795.0,1.31522827]
[1673589780354,0.00495191,18796.0,18795.0,1.3150796]
[1673589780829,0.00495191,18796.0,18795.0,1.83932909]
[1673589781775,0.00495191,18796.0,18795.0,1.3619796]
[1673589782211,0.00495191,18796.0,18795.0,1.83932909]
[1673589784335,0.00495191,18796.0,18795.0,1.83818272]
[1673589786512,0.00495191,18796.0,18795.0,1.79128272]
[1673589789254,0.00495191,18796.0,18795.0,1.86592537]
[1673589792459,0.21533985,18796.0,18795.0,1.29983846]
[1673589792718,0.00503491,18796.0,18795.0,1.68586686]
[1673589792956,0.00503491,18796.0,18795.0,1.52663563]
[1673589792957,0.00495191,18796.0,18795.0,1.52663563]
[1673589793195,0.00494904,18796.0,18795.0,1.52663563]
[1673589794204,0.00494904,18796.0,18795.0,1.36742944]
[1673589795421,0.00494904,18796.0,18795.0,1.52663563]
[1673589796176,0.00494904,18796.0,18795.0,1.52671254]
[1673589796899,0.00494904,18796.0,18795.0,1.52663563]
[1673589798876,0.00494904,18796.0,18795.0,1.36744804]
[1673589799168,0.00494904,18796.0,18795.0,1.52663563]
[1673589799416,0.00494904,18796.0,18795.0,1.36744588]
[1673589799942,0.00494904,18796.0,18795.0,1.36744615]
[1673589800886,0.00494904,18796.0,18795.0,2.15719063]
[1673589801145,0.00494904,18796.0,18795.0,1.91831997]
[1673589801368,0.00494904,18796.0,18795.0,2.15725102]
[1673589801871,0.00494904,18796.0,18795.0,1.58684821]
[1673589802116,0.00494904,18796.0,18795.0,1.18874632]
[1673589805580,0.00494904,18796.0,18795.0,1.8923612]
[1673589805827,0.00494904,18796.0,18795.0,1.18874632]
[1673589806085,0.00494904,18796.0,18795.0,1.66609581]
[1673589806606,0.00494904,18796.0,18795.0,2.00155911]
[1673589806607,0.00485729,18796.0,18795.0,2.00155911]
[1673589808305,0.00485729,18796.0,18795.0,1.66609581]
[1673589808812,0.00485729,18796.0,18795.0,2.00155911]
[1673589809356,0.00485729,18796.0,18795.0,2.26754911]
[1673589809580,0.00485729,18796.0,18795.0,1.93208581]
[1673589810410,0.00485729,18796.0,18795.0,2.31643232]
[1673589810674,0.00485729,18796.0,18795.0,3.02173668]
[1673589811404,0.00485729,18796.0,18795.0,2.88203172]
[1673589811896,0.00339966,18797.0,18796.0,0.1]
[1673589812113,0.00339966,18797.0,18796.0,1.717051]
[1673589812388,0.00339966,18797.0,18796.0,2.72235536]
[1673589813104,0.00339966,18797.0,18796.0,2.86135536]
[1673589813341,0.00469985,18797.0,18796.0,2.156051]
[1673589813586,0.00352526,18799.0,18797.0,0.1]
[1673589813836,0.00352526,18799.0,18798.0,0.9485183]
[1673589814082,0.00352526,18799.0,18798.0,1.5144783]
[1673589814819,0.00352526,18799.0,18798.0,2.51823793]
[1673589815578,0.00352526,18799.0,18798.0,2.04078789]
[1673589815828,0.00352526,18799.0,18798.0,2.18078789]
[1673589816063,0.00352526,18799.0,18798.0,1.84532459]
[1673589816301,0.00352526,18799.0,18798.0,2.44441852]
[1673589816543,0.00352526,18799.0,18798.0,1.84532459]
[1673589817603,0.00309533,18800.0,18799.0,0.35]
[1673589817863,0.00309533,18800.0,18799.0,1.48925477]
[1673589818125,0.00309533,18800.0,18799.0,2.25337974]
[1673589819115,0.00309533,18800.0,18799.0,2.39437974]
[1673589819359,0.00309533,18800.0,18799.0,2.25337974]
[1673589819577,0.00309533,18800.0,18799.0,2.39237974]
[1673589819822,0.00309533,18800.0,18799.0,2.05691644]
[1673589820075,0.00410676,18802.0,18799.0,3.01092978]
[1673589820334,0.00410676,18802.0,18801.0,0.53895577]
[1673589820595,0.00410676,18802.0,18801.0,2.55190671]
[1673589820845,0.00410676,18802.0,18801.0,2.53433077]
[1673589821102,0.00410676,18802.0,18801.0,2.136975]
[1673589821336,0.00410676,18802.0,18801.0,2.77265037]
[1673589821592,0.00410676,18802.0,18801.0,2.3752946]
[1673589822279,0.00410676,18802.0,18801.0,2.5142946]
[1673589823007,0.00410676,18802.0,18801.0,2.2642946]
[1673589823281,0.00410676,18802.0,18801.0,2.42333077]
[1673589823773,0.00410676,18802.0,18801.0,2.5142136]
[1673589824022,0.00410676,18802.0,18801.0,2.275975]
[1673589824274,0.00410676,18802.0,18801.0,2.51418778]
[1673589824562,0.00410676,18802.0,18801.0,2.37518778]
[1673589824790,0.00410676,18802.0,18801.0,2.51418778]
[1673589825275,0.00410676,18802.0,18801.0,2.37518778]
[1673589825513,0.00410676,18802.0,18801.0,2.51418778]
[1673589826077,0.00410676,18802.0,18801.0,1.56265231]
[1673589827314,0.00410676,18802.0,18801.0,1.31265231]
[1673589827800,0.00410676,18802.0,18801.0,1.61265231]
[1673589828043,0.00410676,18802.0,18801.0,1.31265231]
[1673589829048,0.00410676,18802.0,18801.0,0.98209731]
[1673589830048,0.00410676,18802.0,18801.0,1.31272919]
[1673589830295,0.00410676,18802.0,18801.0,0.98217419]
[1673589831037,0.00410676,18802.0,18801.0,0.84317419]
[1673589831282,0.00510676,18802.0,18801.0,0.98417419]
[1673589833478,0.00510676,18802.0,18801.0,1.23417419]
[1673589833731,0.00641064,18802.0,18801.0,1.23417419]
[1673589834699,0.00641064,18802.0,18801.0,1.56472919]
[1673589835182,0.00641064,18802.0,18801.0,1.86472919]
[1673589835439,0.02352535,18802.0,18801.0,1.86472919]
[1673589837182,0.02352535,18802.0,18801.0,1.53417419]
[1673589838158,0.02352535,18802.0,18801.0,1.23417419]
[1673589838434,0.02352535,18802.0,18801.0,1.53417419]
[1673589838938,0.02352535,18802.0,18801.0,1.23417419]
[1673589839196,0.02352535,18802.0,18801.0,1.53417419]
[1673589839447,0.02352535,18802.0,18801.0,1.45108476]
[1673589839942,0.02352535,18802.0,18801.0,2.08287735]
[1673589840188,0.02352535,18802.0,18801.0,1.68929754]
[1673589840441,0.02352535,18802.0,18801.0,2.28163998]
[1673589840952,0.02343858,18802.0,18801.0,2.28163998]
[1673589841703,0.02343858,18802.0,18801.0,1.84843196]
[1673589841959,0.02343858,18802.0,18801.0,2.00757495]
[1673589842692,0.02343858,18802.0,18801.0,1.9838106]
[1673589843183,0.02343858,18802.0,18801.0,2.7120068]
[1673589843428,0.02343858,18802.0,18801.0,2.39411944]
[1673589843690,0.02343858,18802.0,18801.0,1.76022324]
[1673589845425,0.02343858,18802.0,18801.0,1.36286747]
[1673589846177,0.02343858,18802.0,18801.0,1.76050682]
[1673589846416,0.02343858,18802.0,18801.0,1.36286747]
[1673589846655,0.02343858,18802.0,18801.0,1.88910017]
[1673589848451,0.00441382,18803.0,18802.0,0.1]
[1673589848735,0.00441382,18803.0,18802.0,0.730555]
[1673589848985,0.00441382,18803.0,18802.0,1.1282749]
[1673589849229,0.00441382,18803.0,18802.0,1.0660183]
[1673589849475,0.00441382,18803.0,18802.0,1.54346834]
[1673589849738,0.00441382,18803.0,18802.0,1.0660183]
[1673589849949,0.00441382,18803.0,18802.0,0.821555]
[1673589850683,0.00478739,18804.0,18802.0,2.34930104]
[1673589850931,0.00478739,18804.0,18803.0,1.0510877]
[1673589851193,0.00478739,18804.0,18803.0,1.74886851]
[1673589851446,0.00478739,18804.0,18803.0,1.3510877]
[1673589851689,0.00988589,18806.0,18803.0,1.686551]
[1673589851944,0.00988589,18806.0,18805.0,0.46835762]
[1673589852190,0.00988589,18806.0,18805.0,1.96060862]
[1673589852440,0.00812806,18808.0,18805.0,2.43786722]
[1673589852688,0.00812806,18808.0,18807.0,0.71583752]
[1673589852934,0.00812806,18808.0,18807.0,1.34639252]
[1673589853700,0.00812806,18808.0,18807.0,1.18711863]
[1673589853952,0.00942739,18808.0,18807.0,1.18711863]
[1673589854472,0.00942739,18808.0,18807.0,1.18719549]
[1673589854723,0.00942739,18808.0,18807.0,1.32619549]
[1673589855216,0.00942739,18808.0,18807.0,1.59756133]
[1673589855472,0.00951039,18808.0,18807.0,1.05907085]
[1673589855711,0.00942739,18808.0,18807.0,1.05907085]
[1673589856694,0.00942739,18808.0,18807.0,1.05914771]
[1673589857686,0.00942739,18808.0,18807.0,0.72859271]
[1673589857937,0.00942739,18808.0,18807.0,1.35914771]
[1673589859172,0.00942739,18808.0,18807.0,1.62499771]
[1673589861158,0.5445156,18810.0,18808.0,0.1]
[1673589861159,0.53582303,18810.0,18808.0,0.1]
[1673589861405,0.10806833,18811.0,18809.0,0.330555]
[1673589861406,0.61002853,18811.0,18809.0,0.330555]
[1673589861647,0.75112853,18811.0,18808.0,0.76088551]
[1673589862150,0.65112853,18811.0,18809.0,0.3]
[1673589862397,0.002,18810.0,18809.0,0.3]
[1673589862640,0.002,18810.0,18808.0,0.89988551]
[1673589862890,0.002,18810.0,18809.0,0.3]
[1673589863380,0.65112853,18811.0,18809.0,0.3]
[1673589863641,0.65112853,18811.0,18809.0,0.56419068]
[1673589863933,0.002,18810.0,18809.0,0.70419068]
[1673589864180,0.14916833,18811.0,18809.0,0.56419068]
[1673589864432,0.15116833,18811.0,18809.0,0.70419068]
[1673589864676,0.14916833,18811.0,18809.0,0.56419068]
[1673589864940,0.14916833,18811.0,18810.0,0.50894798]
[1673589865437,0.15016833,18811.0,18810.0,0.50894798]
[1673589866254,0.15025133,18811.0,18809.0,0.078]
[1673589866481,0.3823,18810.0,18807.0,0.51886256]
[1673589866747,0.1411,18808.0,18807.0,0.51886256]
[1673589866992,0.35140494,18808.0,18807.0,0.51886256]
[1673589867239,0.1411,18808.0,18807.0,0.51886256]
[1673589867481,0.1411,18808.0,18807.0,0.65786256]
[1673589867744,0.1411,18808.0,18807.0,0.51886256]
[1673589867994,0.1411,18808.0,18807.0,0.078]
[1673589868244,0.1421,18808.0,18807.0,0.078]
[1673589868819,0.74192875,18808.0,18807.0,0.078]
[1673589869051,1.07248375,18808.0,18807.0,0.078]
[1673589870172,0.74184575,18808.0,18807.0,0.078]
[1673589870439,0.001,18808.0,18807.0,0.15519258]
[1673589870683,0.001,18808.0,18807.0,0.76883796]
[1673589872489,0.001,18808.0,18807.0,0.76891482]
[1673589874446,0.00230092,18808.0,18807.0,0.76891482]
[1673589875465,0.00230092,18808.0,18807.0,1.06891482]
[1673589875716,0.00230092,18808.0,18807.0,1.39946982]
[1673589876210,0.00230092,18808.0,18807.0,1.29946982]
[1673589876472,0.00230092,18808.0,18807.0,0.66891482]
[1673589877202,0.00230092,18808.0,18807.0,0.96891482]
[1673589877959,0.00230092,18808.0,18807.0,1.29946982]
[1673589878973,0.00230092,18808.0,18807.0,0.66891482]
[1673589879226,0.00230092,18808.0,18807.0,0.64613732]
[1673589879476,0.00230092,18808.0,18807.0,1.13563711]
[1673589879715,0.00230092,18808.0,18807.0,1.27669232]
[1673589879957,0.00230092,18808.0,18807.0,1.43563711]
[1673589880215,0.00230092,18808.0,18807.0,1.27669232]
[1673589880465,0.00230092,18808.0,18807.0,0.94613732]
[1673589880974,0.00230092,18808.0,18807.0,1.10508211]
[1673589881227,0.00230092,18808.0,18807.0,0.94613732]
[1673589881482,0.00230092,18808.0,18807.0,1.10508211]
[1673589881725,0.00230092,18808.0,18807.0,1.43563711]
[1673589881965,0.00230092,18808.0,18807.0,1.10508211]
[1673589882935,0.14318392,18808.0,18807.0,0.64606046]
[1673589883422,0.14310092,18808.0,18807.0,0.64606046]
[1673589883649,0.00230092,18808.0,18807.0,0.64606046]
[1673589885898,0.00238392,18808.0,18807.0,0.03241508]
[1673589886146,0.00230092,18808.0,18807.0,0.03241508]
[1673589886839,0.00230092,18808.0,18807.0,0.03249194]
[1673589890726,0.51235107,18808.0,18807.0,0.03241508]
[1673589890966,0.51243407,18808.0,18807.0,0.03241508]
[1673589892227,0.51235107,18808.0,18807.0,0.03241508]
[1673589893458,0.84298907,18808.0,18807.0,0.03241508]
[1673589894674,0.84298867,18808.0,18807.0,0.03249194]
[1673589894919,0.84290567,18808.0,18807.0,0.03241508]
[1673589896442,0.51235067,18808.0,18807.0,0.03241508]
[1673589896660,0.00230052,18808.0,18807.0,0.03241508]
[1673589896904,0.00230052,18808.0,18807.0,0.03249194]
[1673589896905,0.14330052,18808.0,18807.0,0.03249194]
[1673589898144,0.47385552,18808.0,18807.0,0.03249194]
[1673589898395,0.47385552,18808.0,18807.0,0.56160943]
[1673589898627,0.00230052,18808.0,18807.0,0.56160943]
[1673589898880,0.00230052,18808.0,18807.0,0.56153257]
[1673589900370,0.00238352,18808.0,18807.0,0.03241508]
[1673589900636,0.33293852,18808.0,18807.0,0.03241508]
[1673589900835,0.33285552,18808.0,18807.0,0.03241508]
[1673589901644,0.00230052,18808.0,18807.0,0.03094308]
[1673589902138,0.00238352,18808.0,18807.0,0.03094308]
[1673589902441,0.00230052,18808.0,18807.0,0.03094308]
[1673589903418,0.00230052,18808.0,18807.0,0.01796598]
[1673589904409,0.00230052,18808.0,18807.0,0.17691077]
[1673589904908,0.00230052,18808.0,18807.0,0.01796598]
[1673589905407,0.00230052,18808.0,18807.0,0.17691077]
[1673589909364,0.00230052,18808.0,18807.0,0.01796598]
[1673589909612,0.00230052,18808.0,18807.0,0.17691077]
[1673589910126,0.00230052,18808.0,18807.0,0.01796598]
[1673589911860,0.00230052,18808.0,18807.0,0.17691077]
[1673589912611,0.00230052,18808.0,18807.0,0.85925187]
[1673589914882,0.0022968,18808.0,18807.0,0.85925187]
[1673589916139,0.0023798,18808.0,18807.0,0.85925187]
[1673589916378,0.0022968,18808.0,18807.0,0.85925187]
[1673589917835,0.0023798,18808.0,18807.0,0.85925187]
[1673589918084,0.0022968,18808.0,18807.0,0.1540597]
[1673589918564,0.0022968,18808.0,18807.0,7.686e-05]
[1673589920043,0.0022968,18808.0,18806.0,0.91506072]
[1673589920780,0.0023798,18808.0,18806.0,0.6766471]
[1673589921018,0.0022968,18808.0,18806.0,0.91506072]
[1673589921532,0.0102968,18808.0,18806.0,0.97721397]
[1673589921771,0.50537288,18808.0,18806.0,0.97721397]
[1673589922251,0.0102968,18808.0,18806.0,1.29536398]
[1673589922482,0.0102968,18808.0,18807.0,0.98978628]
[1673589922754,0.0102968,18808.0,18807.0,0.75137266]
[1673589923243,0.0102968,18808.0,18807.0,0.98978628]
[1673589923484,0.0012968,18808.0,18807.0,0.98978628]
[1673589924462,0.0052968,18808.0,18807.0,1.02878628]
[1673589925948,0.0052968,18808.0,18807.0,0.79037266]
[1673589926198,0.0052968,18808.0,18807.0,1.02878628]
[1673589926992,0.0052968,18808.0,18807.0,0.79037266]
[1673589929833,0.0053798,18808.0,18807.0,0.79037266]
[1673589930079,0.0052968,18808.0,18807.0,0.79037266]
[1673589931508,0.3358518,18808.0,18807.0,0.79037266]
[1673589931765,0.2455248,18808.0,18807.0,0.79037266]
[1673589932949,0.3358518,18808.0,18807.0,0.79037266]
[1673589933207,0.0052968,18808.0,18807.0,0.79037266]
[1673589933690,0.0052968,18808.0,18807.0,0.8133]